bitfinex/quotes_BTCUSD_20250110
["timestamp","ask_amount","ask_price","bid_price","bid_amount"]
[1736531950494,0.00130372,95899.0,95876.0,1.5]
[1736531950701,0.2902828,95900.0,95876.0,1.5]
[1736531950702,0.00130366,95898.0,95876.0,1.5]
[1736531951138,0.208557,95897.0,95876.0,1.5]
[1736531951340,0.00130366,95896.0,95877.0,0.31289976]
[1736531951561,0.0013036,95914.0,95878.0,0.00061419]
[1736531951759,0.208522,95913.0,95880.0,0.047]
[1736531951960,0.00130347,95912.0,95885.0,0.208581]
[1736531952158,0.00130347,95911.0,95892.0,0.208567]
[1736531952588,0.00130347,95911.0,95889.0,0.208573]
[1736531952589,8.53e-05,95915.0,95893.0,0.10491362]
[1736531952789,0.008,95899.0,95881.0,0.0787]
[1736531953016,0.008,95899.0,95882.0,0.10429976]
[1736531953183,0.208546,95903.0,95882.0,0.10429976]
[1736531953415,0.0208546,95902.0,95882.0,0.10429976]
[1736531953617,0.00130351,95909.0,95882.0,0.31288676]
[1736531953740,0.00130351,95909.0,95882.0,0.10429976]
[1736531953940,0.2902828,95900.0,95892.0,0.001]
[1736531954141,0.208554,95898.0,95892.0,0.001]
[1736531954376,0.208563,95895.0,95877.0,0.00048759]
[1736531954575,0.10429976,95908.0,95877.0,0.00048759]
[1736531954576,0.208572,95891.0,95877.0,0.00048759]
[1736531954779,0.2902828,95900.0,95877.0,0.00048759]
[1736531954988,0.2902828,95890.0,95877.0,0.00048759]
[1736531955194,0.20859,95882.0,95877.0,0.00048759]
[1736531955406,0.2902828,95890.0,95877.0,0.00048759]
[1736531955407,0.208594,95880.0,95877.0,0.00048759]
[1736531955615,0.167182,95883.0,95877.0,0.00048759]
[1736531955830,0.417188,95880.0,95877.0,0.00048759]
[1736531956048,0.208598,95878.0,95877.0,0.00048759]
[1736531956695,0.31289776,95878.0,95877.0,0.00048759]
[1736531956897,0.31289776,95878.0,95877.0,0.00348759]
[1736531957099,0.31289776,95878.0,95877.0,0.00048759]
[1736531957508,0.31689776,95878.0,95877.0,0.00048759]
[1736531957716,0.31289776,95878.0,95877.0,0.00048759]
[1736531957922,0.37598804,95878.0,95877.0,0.00048759]
[1736531958176,0.208683,95839.0,95838.0,0.17608246]
[1736531958604,0.31298276,95839.0,95838.0,0.17608246]
[1736531958858,0.2087,95831.0,95830.0,0.00048789]
[1736531959113,0.35473826,95831.0,95830.0,0.00048789]
[1736531959364,0.2087,95831.0,95830.0,0.00048789]
[1736531959561,0.208685,95838.0,95830.0,0.00048789]
[1736531959793,0.208695,95834.0,95830.0,0.00048789]
[1736531960002,0.10560427,95833.0,95830.0,0.00038295]
[1736531960218,0.208698,95832.0,95830.0,0.00038295]
[1736531960441,0.00130458,95831.0,95830.0,0.00038295]
[1736531960725,0.208698,95832.0,95830.0,0.00038295]
[1736531961003,0.00130451,95831.0,95830.0,0.00038295]
[1736531961739,0.00530451,95831.0,95830.0,0.00025615]
[1736531961953,0.00130455,95831.0,95830.0,0.00025615]
[1736531962428,0.00330455,95831.0,95830.0,0.00025615]
[1736531962859,0.002,95831.0,95830.0,0.00025615]
[1736531963070,0.002,95831.0,95830.0,0.10455591]
[1736531963283,0.002,95831.0,95830.0,0.10517136]
[1736531963926,0.002,95831.0,95830.0,0.10455591]
[1736531964129,0.208585,95884.0,95833.0,0.1]
[1736531964304,0.208586,95884.0,95863.0,0.208629]
[1736531964598,0.208586,95884.0,95850.0,0.10429976]
[1736531964599,0.208575,95889.0,95864.0,0.10429976]
[1736531964807,0.2902828,95900.0,95869.0,1.5]
[1736531965026,0.12112551,95915.0,95869.0,1.5]
[1736531965027,0.2902828,95890.0,95869.0,1.5]
[1736531965251,0.2902828,95880.0,95846.0,0.208665]
[1736531965491,0.2902828,95900.0,95858.0,0.10429976]
[1736531965792,0.208558,95897.0,95863.0,0.10429976]
[1736531965998,0.2902828,95910.0,95863.0,0.10429976]
[1736531965999,0.208561,95895.0,95868.0,1.5]
[1736531966236,0.208573,95890.0,95869.0,0.10429976]
[1736531966450,0.2902828,95880.0,95868.0,1.5]
[1736531966650,0.2902828,95880.0,95858.0,0.00048829]
[1736531966651,0.208598,95878.0,95858.0,0.00048829]
[1736531966892,0.20861,95873.0,95858.0,0.00048829]
[1736531967096,0.10429976,95889.0,95858.0,0.00048829]
[1736531967287,0.208621,95868.0,95858.0,1.50048829]
[1736531967411,0.10429976,95889.0,95858.0,0.00048829]
[1736531967613,0.10429976,95889.0,95864.0,0.001]
[1736531967614,0.0013039,95888.0,95864.0,0.001]
[1736531967813,0.208626,95865.0,95858.0,0.00048829]
[1736531968112,0.208639,95859.0,95858.0,0.00048829]
[1736531968964,0.2712286,95859.0,95858.0,0.00048829]
[1736531969164,0.208639,95859.0,95858.0,0.00048829]
[1736531969843,0.31293876,95859.0,95858.0,0.00048829]
[1736531970372,0.3128246,95859.0,95858.0,0.00048829]
[1736531970807,0.4718246,95859.0,95858.0,2.9e-07]
[1736531971138,0.208676,95842.0,95841.0,0.00252]
[1736531971370,0.33384336,95842.0,95841.0,0.00252]
[1736531971714,0.31297576,95842.0,95841.0,0.00252]
[1736531972808,0.32197576,95842.0,95841.0,0.00352]
[1736531973250,0.3218662,95842.0,95841.0,0.00352]
[1736531973453,0.34321832,95842.0,95841.0,0.00352]
[1736531973655,0.41927385,95842.0,95841.0,0.00352]
[1736531974233,0.34321832,95842.0,95841.0,0.00352]
[1736531974686,0.208665,95848.0,95841.0,0.00252]
[1736531974899,0.208638,95860.0,95842.0,1.5]
[1736531975099,0.20863,95864.0,95843.0,0.20928911]
[1736531975245,0.01194603,95889.0,95845.0,0.20867]
[1736531975451,0.10429976,95893.0,95841.0,0.00252]
[1736531975452,0.2902828,95870.0,95841.0,0.00252]
[1736531975661,0.007,95842.0,95841.0,0.00352]
[1736531977518,0.20865,95854.0,95841.0,0.00252]
[1736531977651,0.20854049,95854.0,95841.0,0.00252]
[1736531977857,0.208661,95849.0,95841.0,0.00252]
[1736531978059,0.208674,95843.0,95841.0,0.00252]
[1736531978268,0.4988778,95880.0,95841.0,0.00252]
[1736531978461,0.208542,95904.0,95859.0,0.208637]
[1736531978662,0.208542,95904.0,95843.0,0.0699]
[1736531978663,0.10560343,95903.0,95860.0,0.10429976]
[1736531979023,0.002,95864.0,95861.0,0.208635]
[1736531979200,0.208546,95902.0,95862.0,0.10429976]
[1736531979359,0.10560348,95901.0,95862.0,1.60429976]
[1736531979578,0.208592,95881.0,95862.0,1.60429976]
[1736531979801,0.208592,95881.0,95862.0,1.60439975]
[1736531980273,0.208601,95877.0,95862.0,1.60439975]
[1736531980602,0.20861,95873.0,95862.0,1.50109999]
[1736531980871,0.208552,95899.0,95862.0,1.50009999]
[1736531981046,0.10560363,95898.0,95862.0,9.999e-05]
[1736531981251,0.208559,95896.0,95872.0,0.20861]
[1736531981453,0.208556,95898.0,95873.0,0.10502357]
[1736531981662,0.208557,95898.0,95876.0,0.208601]
[1736531981863,0.20853,95910.0,95881.0,0.417181]
[1736531982100,8.53e-05,95915.0,95882.0,0.10502333]
[1736531982283,0.10429976,95914.0,95882.0,0.10429976]
[1736531982492,0.208544,95903.0,95882.0,0.10429976]
[1736531982661,0.10429976,95903.0,95862.0,9.999e-05]
[1736531982862,0.10560343,95902.0,95863.0,0.10429976]
[1736531983128,0.208563,95894.0,95871.0,0.208612]
[1736531983342,0.208572,95890.0,95872.0,0.10429976]
[1736531983513,0.417145,95890.0,95872.0,0.10429976]
[1736531983668,0.417145,95890.0,95882.0,0.001]
[1736531983871,0.31284576,95902.0,95872.0,0.10429976]
[1736531984072,0.00130367,95901.0,95873.0,0.0007238]
[1736531984271,0.208561,95896.0,95874.0,0.10429976]
[1736531984473,0.003,95902.0,95876.0,0.10429976]
[1736531984705,0.003,95902.0,95890.0,0.20857]
[1736531984917,0.003,95902.0,95893.0,1.5]
[1736531985093,0.003,95902.0,95894.0,0.10429976]
[1736531985293,0.003,95902.0,95859.0,0.01316]
[1736531985647,0.208564,95894.0,95878.0,0.15079976]
[1736531986054,0.208581,95886.0,95864.0,0.208628]
[1736531986266,0.208592,95881.0,95878.0,9.999e-05]
[1736531986405,0.2902828,95900.0,95878.0,9.999e-05]
[1736531986406,0.208583,95885.0,95878.0,9.999e-05]
[1736531986605,0.208578,95888.0,95878.0,9.999e-05]
[1736531986805,0.00130377,95887.0,95878.0,9.999e-05]
[1736531987030,0.417162,95886.0,95878.0,9.999e-05]
[1736531987236,0.20859,95882.0,95878.0,9.999e-05]
[1736531987438,0.00130377,95881.0,95878.0,9.999e-05]
[1736531987991,0.208594,95880.0,95878.0,9.999e-05]
[1736531988773,0.00130381,95879.0,95878.0,9.999e-05]
[1736531989574,0.417184,95881.0,95878.0,9.999e-05]
[1736531989871,0.208592,95881.0,95878.0,9.999e-05]
[1736531989995,0.208579,95887.0,95878.0,9.999e-05]
[1736531990363,0.208583,95885.0,95878.0,1.50009999]
[1736531990943,0.208592,95881.0,95878.0,1.50009999]
[1736531991141,0.417184,95881.0,95878.0,1.50009999]
[1736531991478,0.208592,95881.0,95878.0,1.50009999]
[1736531992834,0.208577,95888.0,95878.0,1.50009999]
[1736531993036,0.09348211,95906.0,95878.0,1.50009999]
[1736531993205,0.208559,95896.0,95878.0,1.50009999]
[1736531993351,0.208568,95892.0,95878.0,1.50009999]
[1736531993750,0.208562,95895.0,95878.0,1.50009999]
[1736531993996,0.208565,95893.0,95878.0,1.50009999]
[1736531994196,0.208582,95886.0,95878.0,9.999e-05]
[1736531994405,0.208564,95894.0,95878.0,9.999e-05]
[1736531994575,8.53e-05,95915.0,95878.0,0.20869799]
[1736531994827,0.10429976,95914.0,95878.0,0.10439975]
[1736531995016,8.53e-05,95915.0,95880.0,0.082]
[1736531995280,8.53e-05,95915.0,95881.0,0.31361394]
[1736531995441,8.53e-05,95915.0,95895.0,0.208559]
[1736531995614,0.09316011,95916.0,95903.0,0.208542]
[1736531995833,0.09316011,95916.0,95910.0,1.5]
[1736531996039,0.09316011,95916.0,95913.0,0.208521]
[1736531996285,0.09316011,95916.0,95915.0,0.208517]
[1736531996484,0.10528328,95918.0,95917.0,0.208513]
[1736531996686,0.0076757,95925.0,95917.0,0.208513]
[1736531996687,0.0076757,95925.0,95917.0,0.31281276]
[1736531996852,0.0076757,95925.0,95919.0,0.208509]
[1736531997049,0.0076757,95925.0,95920.0,0.10429976]
[1736531997299,0.0076757,95925.0,95919.0,9.999e-05]
[1736531997848,0.00997894,95925.0,95919.0,9.999e-05]
[1736531998250,0.416998,95924.0,95919.0,9.999e-05]
[1736531998531,0.208498,95924.0,95919.0,9.999e-05]
[1736531998668,0.208498,95924.0,95919.0,0.00309999]
[1736531999201,0.0076757,95925.0,95919.0,0.00309999]
[1736531999998,0.0076757,95925.0,95919.0,9.999e-05]
[1736532000425,0.15,95923.0,95919.0,9.999e-05]
[1736532000626,0.0086757,95925.0,95919.0,9.999e-05]
[1736532000627,0.46270676,95920.0,95919.0,9.9e-07]
[1736532001030,0.47526676,95920.0,95919.0,0.00300099]
[1736532001229,0.46270676,95920.0,95919.0,0.00300099]
[1736532001573,0.46270676,95920.0,95919.0,9.9e-07]
[1736532001574,0.208407,95920.0,95919.0,9.9e-07]
[1736532002109,0.46270676,95920.0,95919.0,9.9e-07]
[1736532002950,0.46270676,95920.0,95877.0,0.05]
[1736532002951,0.1,95918.0,95877.0,0.05]
[1736532003150,0.10429976,95906.0,95877.0,0.05011865]
[1736532003415,0.00130373,95905.0,95878.0,0.10429976]
[1736532003689,0.00130373,95905.0,95877.0,0.05011865]
[1736532003690,0.208561,95895.0,95877.0,0.05011865]
[1736532003890,0.00130367,95894.0,95877.0,0.05011865]
[1736532004135,0.208581,95886.0,95877.0,0.05011865]
[1736532004338,0.208589,95882.0,95877.0,0.05011865]
[1736532004531,0.208585,95884.0,95877.0,0.05011865]
[1736532004532,0.15,95879.0,95877.0,0.05011865]
[1736532004734,0.4642019,95878.0,95877.0,0.05011865]
[1736532004952,0.46289776,95878.0,95877.0,0.05011865]
[1736532005155,0.208676,95842.0,95841.0,0.00252]
[1736532005288,0.31297576,95842.0,95841.0,0.00252]
[1736532005470,0.31297576,95842.0,95841.0,0.00266485]
[1736532006110,0.208676,95842.0,95841.0,0.00266485]
[1736532006328,0.31297576,95842.0,95841.0,0.00266485]
[1736532006533,0.208676,95842.0,95841.0,0.00266485]
[1736532006731,0.208662,95849.0,95841.0,0.00266485]
[1736532006932,0.2902828,95870.0,95841.0,0.00266485]
[1736532006933,0.208673,95844.0,95841.0,0.00266485]
[1736532007529,0.208676,95842.0,95841.0,0.00266485]
[1736532007735,0.31297576,95842.0,95841.0,0.00266485]
[1736532007908,0.31697576,95842.0,95841.0,0.00266485]
[1736532008141,0.4613491,95842.0,95841.0,0.00266485]
[1736532008350,0.4613491,95842.0,95841.0,8.5e-07]
[1736532008351,0.53691131,95842.0,95841.0,8.5e-07]
[1736532008782,0.15,95841.0,95840.0,0.11652885]
[1736532008993,0.15,95841.0,95840.0,0.00014485]
[1736532008994,0.25560433,95841.0,95840.0,0.00014485]
[1736532009198,0.358705,95829.0,95815.0,0.0001706]
[1736532009403,0.46300476,95829.0,95828.0,0.00066638]
[1736532009619,0.10429976,95829.0,95828.0,0.00066638]
[1736532009826,0.22988052,95842.0,95828.0,0.00066638]
[1736532010061,0.208653,95853.0,95828.0,0.00066638]
[1736532010062,0.09339024,95853.0,95834.0,0.208692]
[1736532010266,0.09339024,95853.0,95829.0,0.10429976]
[1736532010480,0.009,95842.0,95828.0,0.00066638]
[1736532010697,0.09339024,95853.0,95829.0,0.1050248]
[1736532010901,0.208596,95879.0,95834.0,0.10429976]
[1736532011104,0.002,95842.0,95841.0,0.208678]
[1736532011305,0.208593,95881.0,95841.0,0.10429976]
[1736532011629,0.208602,95876.0,95842.0,0.10502419]
[1736532011807,0.208625,95866.0,95841.0,0.208677]
[1736532012006,0.208628,95864.0,95828.0,0.00166638]
[1736532012246,0.10560388,95865.0,95830.0,0.208702]
[1736532012247,0.00130423,95863.0,95830.0,0.208702]
[1736532012467,0.00130423,95863.0,95840.0,0.208679]
[1736532012679,0.208611,95872.0,95849.0,0.208659]
[1736532012883,0.001304,95871.0,95854.0,0.208649]
[1736532013092,0.01256,95896.0,95855.0,0.10502408]
[1736532013297,0.208564,95894.0,95855.0,0.10502408]
[1736532013506,0.00130376,95893.0,95855.0,0.10429976]
[1736532013731,0.00130379,95892.0,95855.0,0.10429976]
[1736532013936,0.00130373,95891.0,95860.0,0.2902828]
[1736532014139,0.208585,95884.0,95861.0,0.10429976]
[1736532014355,0.208585,95884.0,95832.0,0.1]
[1736532014356,0.001,95871.0,95852.0,0.01172344]
[1736532014564,0.208628,95865.0,95842.0,0.208674]
[1736532014783,0.00130412,95864.0,95827.0,0.208707]
[1736532014988,0.00130412,95864.0,95815.0,0.02101676]
[1736532014989,0.10560388,95864.0,95829.0,0.208705]
[1736532015261,0.00130425,95863.0,95839.0,0.208683]
[1736532015702,0.208635,95861.0,95831.0,1.5]
[1736532015914,0.15,95857.0,95828.0,0.00066638]
[1736532016128,0.1056042,95856.0,95828.0,0.00066638]
[1736532016333,0.208703,95830.0,95828.0,0.00066638]
[1736532016545,0.10560448,95829.0,95828.0,0.00066638]
[1736532016765,0.25560448,95829.0,95828.0,0.00066638]
[1736532016980,0.34246981,95829.0,95828.0,0.00066638]
[1736532017190,0.2902828,95840.0,95828.0,0.00066638]
[1736532017191,0.01208,95858.0,95828.0,0.00066638]
[1736532017400,0.3217067,95860.0,95828.0,0.00066638]
[1736532017401,0.10429976,95854.0,95828.0,0.00066638]
[1736532017579,0.00130459,95853.0,95828.0,0.00066638]
[1736532017821,0.208705,95829.0,95828.0,0.00066638]
[1736532018031,0.217705,95829.0,95828.0,0.00066638]
[1736532018474,0.0806,95881.0,95828.0,0.10496614]
[1736532018673,0.009,95854.0,95835.0,0.208691]
[1736532018877,0.009,95854.0,95839.0,0.208681]
[1736532019346,0.10429976,95853.0,95828.0,0.00066638]
[1736532019520,0.00128353,95852.0,95828.0,0.00066638]
[1736532020194,0.208657,95851.0,95828.0,0.00066638]
[1736532020421,0.00128353,95850.0,95828.0,0.00066638]
[1736532020608,0.2902828,95890.0,95828.0,0.00066638]
[1736532020609,0.208624,95867.0,95834.0,0.208694]
[1736532020816,0.208626,95865.0,95843.0,0.208672]
[1736532021017,0.208631,95863.0,95840.0,0.208679]
[1736532021232,0.15786672,95862.0,95828.0,0.00166638]
[1736532021486,0.208679,95841.0,95828.0,0.00066638]
[1736532021705,0.208692,95835.0,95828.0,0.00166638]
[1736532021921,0.208696,95833.0,95828.0,0.00166638]
[1736532022121,0.2087,95831.0,95828.0,0.00166638]
[1736532022322,0.10558329,95830.0,95828.0,0.00166638]
[1736532022756,0.208705,95829.0,95828.0,0.00166638]
[1736532022956,0.31300476,95829.0,95828.0,0.00166638]
[1736532023374,0.46300476,95829.0,95828.0,0.00066638]
[1736532023572,0.208705,95829.0,95828.0,0.00066638]
[1736532023988,0.53393446,95829.0,95828.0,0.00066638]
[1736532024396,0.358724,95820.0,95805.0,0.0001706]
[1736532024599,0.46302376,95820.0,95819.0,5.4e-07]
[1736532024803,0.50942376,95820.0,95819.0,5.4e-07]
[1736532025011,0.50942376,95820.0,95815.0,1.4e-07]
[1736532025012,0.358733,95816.0,95815.0,1.4e-07]
[1736532025241,0.46303276,95816.0,95815.0,0.00049758]
[1736532025573,0.46303276,95816.0,95815.0,0.00031243]
[1736532025984,0.15,95815.0,95805.0,0.0001706]
[1736532026180,0.2902828,95801.0,95763.0,0.0001706]
[1736532026385,0.46308476,95792.0,95791.0,0.00066822]
[1736532026604,0.61104584,95792.0,95791.0,6.2e-07]
[1736532026808,0.208814,95779.0,95763.0,0.0001706]
[1736532027016,0.31311376,95779.0,95778.0,0.00065848]
[1736532027217,0.208814,95779.0,95778.0,0.00065848]
[1736532027422,0.46311376,95779.0,95778.0,0.00065848]
[1736532027622,0.58190075,95779.0,95778.0,0.00065848]
[1736532027828,0.55118614,95779.0,95778.0,0.00065848]
[1736532028030,0.55918614,95779.0,95778.0,0.00065848]
[1736532028557,0.358846,95764.0,95763.0,0.0001706]
[1736532028728,0.49386037,95764.0,95763.0,0.0001706]
[1736532028911,0.533416,95764.0,95763.0,0.0001706]
[1736532029112,0.56413061,95764.0,95763.0,0.0001706]
[1736532029314,0.59144269,95764.0,95763.0,0.0001706]
[1736532029521,0.15,95759.0,95755.0,0.225]
[1736532029729,0.358877,95750.0,95702.0,0.208981]
[1736532029929,0.31317676,95750.0,95712.0,0.208958]
[1736532030173,0.31317676,95750.0,95708.0,0.208967]
[1736532030421,0.46317676,95750.0,95710.0,1.5]
[1736532030576,0.46317676,95750.0,95707.0,0.208969]
[1736532030783,0.46317676,95750.0,95691.0,0.0459]
[1736532030784,0.47467782,95750.0,95691.0,0.0459]
[1736532031163,0.47467782,95750.0,95694.0,0.208998]
[1736532031164,0.358886,95746.0,95694.0,0.208998]
[1736532031331,0.46318576,95746.0,95699.0,0.208986]
[1736532031534,0.57438629,95746.0,95703.0,0.208977]
[1736532031688,0.54367168,95746.0,95699.0,0.208986]
[1736532031893,0.54367168,95746.0,95691.0,0.254905]
[1736532032095,0.54367168,95746.0,95673.0,0.0777]
[1736532032096,0.358914,95733.0,95673.0,0.0777]
[1736532032321,0.49392837,95733.0,95682.0,0.209025]
[1736532032523,0.15,95732.0,95687.0,0.00476789]
[1736532032723,0.2902828,95697.0,95687.0,0.00476789]
[1736532032930,0.209006,95691.0,95687.0,0.00476789]
[1736532033140,0.03199814,95690.0,95687.0,0.00476789]
[1736532033751,0.15,95688.0,95687.0,0.00476789]
[1736532033902,0.4953099,95688.0,95687.0,0.00476789]
[1736532034152,0.58540696,95688.0,95687.0,0.00476789]
[1736532034352,0.55469235,95688.0,95687.0,0.00476789]
[1736532034562,0.55469235,95688.0,95635.0,0.209127]
[1736532034563,0.19568035,95688.0,95635.0,0.209127]
[1736532034767,0.2902828,95663.0,95652.0,0.209091]
[1736532035141,0.2902828,95663.0,95636.0,0.209126]
[1736532035142,0.209068,95663.0,95636.0,0.209126]
[1736532035363,0.00128353,95662.0,95636.0,0.209126]
[1736532035566,0.00128353,95662.0,95630.0,0.0481]
[1736532035567,0.10558329,95662.0,95630.0,0.0481]
[1736532035771,0.00128353,95662.0,95637.0,0.209123]
[1736532035967,0.00128353,95662.0,95638.0,1.5]
[1736532036206,0.02103405,95661.0,95644.0,0.023]
[1736532036414,0.02103405,95661.0,95643.0,0.20911]
[1736532036415,0.10558329,95660.0,95638.0,1.5]
[1736532036844,0.10558329,95660.0,95619.0,0.209162]
[1736532036845,0.209099,95649.0,95625.0,0.209148]
[1736532037054,0.39458256,95648.0,95619.0,0.209162]
[1736532037259,0.2902828,95660.0,95626.0,0.10534545]
[1736532037467,0.2902828,95660.0,95610.0,0.0497]
[1736532037468,0.00128353,95659.0,95627.0,0.10429976]
[1736532037679,0.00128353,95659.0,95628.0,0.023]
[1736532037886,0.00049073,95661.0,95659.0,0.023]
[1736532038522,0.209075,95659.0,95617.0,0.0795]
[1736532038724,0.2902828,95650.0,95618.0,0.10534547]
[1736532038908,0.02902828,95649.0,95627.0,1.5]
[1736532039146,0.2902828,95650.0,95638.0,0.023]
[1736532039356,0.2902828,95650.0,95628.0,0.209143]
[1736532039565,0.2902828,95650.0,95635.0,0.023]
[1736532039767,0.2902828,95650.0,95629.0,0.023]
[1736532039978,0.2902828,95650.0,95638.0,0.023]
[1736532040181,0.2902828,95640.0,95632.0,0.209134]
[1736532040407,0.209075,95659.0,95610.0,0.258882]
[1736532040408,0.001,95659.0,95638.0,0.023]
[1736532040609,0.2902828,95650.0,95634.0,0.023]
[1736532040812,0.2902828,95650.0,95620.0,0.00104566]
[1736532041021,0.2902828,95650.0,95638.0,0.023]
[1736532041233,0.02902828,95649.0,95632.0,0.209133]
[1736532041445,0.02902828,95649.0,95630.0,0.209138]
[1736532041650,0.2902828,95650.0,95631.0,0.023]
[1736532041855,0.2902828,95650.0,95626.0,0.023]
[1736532042064,0.2902828,95636.0,95620.0,0.0001712]
[1736532042274,0.10429976,95635.0,95620.0,0.0001712]
[1736532042481,0.2902828,95650.0,95621.0,0.10429976]
[1736532042691,0.0026,95659.0,95623.0,0.209154]
[1736532042897,0.0026,95659.0,95650.0,0.209094]
[1736532043112,0.0026,95659.0,95599.0,0.15]
[1736532043113,0.00104587,95668.0,95663.0,0.209065]
[1736532043321,0.1,95677.0,95652.0,0.023]
[1736532043525,0.00104587,95676.0,95657.0,0.209078]
[1736532043729,0.00104587,95676.0,95664.0,0.023]
[1736532043939,0.209014,95688.0,95664.0,0.023]
[1736532043940,0.00104587,95686.0,95664.0,0.023]
[1736532044152,0.1,95700.0,95665.0,0.10534497]
[1736532044360,0.00104587,95699.0,95687.0,0.023]
[1736532044529,0.00104587,95699.0,95686.0,0.209016]
[1736532044530,0.1,95722.0,95696.0,0.023]
[1736532044765,0.01312587,95725.0,95697.0,0.31433665]
[1736532044971,0.00104587,95724.0,95698.0,0.20899]
[1736532045182,0.00104587,95724.0,95697.0,1.60429976]
[1736532045183,0.208938,95722.0,95697.0,1.5]
[1736532045391,0.1,95711.0,95697.0,1.5]
[1736532045604,0.208977,95705.0,95682.0,0.023]
[1736532045809,0.1,95700.0,95679.0,0.20903]
[1736532046019,0.1,95696.0,95680.0,1.5]
[1736532046227,0.00104587,95695.0,95677.0,0.209035]
[1736532046431,0.04100339,95694.0,95674.0,0.209043]
[1736532046649,0.04100339,95694.0,95675.0,0.023]
[1736532046650,0.00104587,95693.0,95675.0,0.023]
[1736532046854,0.1,95690.0,95672.0,0.00014495]
[1736532047061,0.208968,95709.0,95672.0,0.00014495]
[1736532047062,0.00104587,95692.0,95686.0,0.023]
[1736532047262,0.10104587,95709.0,95689.0,0.023]
[1736532047470,0.1,95688.0,95672.0,0.00014495]
[1736532047677,0.309016,95686.0,95672.0,0.00014495]
[1736532047884,0.00104587,95685.0,95672.0,0.00014495]
[1736532048105,0.00104587,95685.0,95672.0,0.10436491]
[1736532048304,0.2902828,95700.0,95672.0,0.10436491]
[1736532048305,0.1,95698.0,95674.0,0.023]
[1736532048512,0.1,95694.0,95672.0,6.515e-05]
[1736532048720,0.209011,95689.0,95672.0,6.515e-05]
[1736532048927,0.00104587,95688.0,95672.0,6.515e-05]
[1736532049130,0.1,95685.0,95672.0,6.515e-05]
[1736532049310,0.00104587,95685.0,95672.0,6.515e-05]
[1736532049546,0.1,95697.0,95672.0,6.515e-05]
[1736532049657,0.2902828,95690.0,95672.0,6.515e-05]
[1736532049859,0.409045,95673.0,95672.0,6.515e-05]
[1736532050066,0.66334476,95673.0,95672.0,6.515e-05]
[1736532050886,0.209132,95634.0,95598.0,0.418418]
[1736532051094,0.00104587,95633.0,95599.0,0.10534543]
[1736532051337,0.02010459,95632.0,95599.0,0.10534543]
[1736532051575,0.1,95625.0,95599.0,0.10429976]
[1736532051727,0.1,95625.0,95598.0,0.00049073]
[1736532051728,0.1,95616.0,95598.0,0.00049073]
[1736532051943,0.209145,95628.0,95599.0,0.10534578]
[1736532052146,0.09870778,95635.0,95617.0,0.209167]
[1736532052306,0.1,95632.0,95599.0,0.10429976]
[1736532052511,0.1,95632.0,95607.0,0.209187]
[1736532052512,0.09870778,95629.0,95607.0,0.209187]
[1736532052708,0.008,95625.0,95621.0,0.209158]
[1736532052996,0.008,95625.0,95608.0,0.10534561]
[1736532052997,0.008,95625.0,95620.0,0.023]
[1736532053184,0.00104587,95639.0,95591.0,0.00129222]
[1736532053390,0.009,95635.0,95609.0,0.10429976]
[1736532053615,0.009,95635.0,95611.0,0.20918]
[1736532053774,0.2902828,95640.0,95598.0,0.00049073]
[1736532053775,0.2902828,95630.0,95598.0,0.00049073]
[1736532053955,0.2902828,95620.0,95599.0,0.10429976]
[1736532054155,0.1,95606.0,95598.0,0.00049073]
[1736532054360,0.00104587,95605.0,95598.0,0.00049073]
[1736532054561,0.09870778,95607.0,95598.0,0.00049073]
[1736532054765,0.209191,95606.0,95598.0,0.00049073]
[1736532055016,0.09975365,95607.0,95598.0,0.00049073]
[1736532055017,0.09870778,95603.0,95598.0,0.00049073]
[1736532055262,0.19870778,95599.0,95598.0,0.00049073]
[1736532055443,0.30405341,95599.0,95598.0,0.00049073]
[1736532055658,0.2092,95602.0,95598.0,0.00049073]
[1736532055868,0.19870778,95599.0,95598.0,0.00049073]
[1736532056080,0.00104587,95599.0,95598.0,0.00049073]
[1736532056293,0.00104587,95605.0,95598.0,0.00049073]
[1736532056504,0.1,95617.0,95598.0,0.00049073]
[1736532056758,0.209171,95616.0,95598.0,0.00049073]
[1736532056965,0.005,95599.0,95598.0,0.23269973]
[1736532057174,0.005,95599.0,95598.0,0.02349073]
[1736532057587,0.30300754,95599.0,95598.0,0.00049073]
[1736532057809,0.37514819,95599.0,95598.0,0.00049073]
[1736532058627,0.1,95603.0,95598.0,0.00049073]
[1736532058832,0.30300754,95599.0,95598.0,0.00049073]
[1736532059459,0.45300754,95599.0,95598.0,0.00049073]
[1736532059866,0.19870778,95599.0,95598.0,0.00049073]
[1736532060082,0.19975365,95599.0,95598.0,0.00049073]
[1736532060323,0.59806808,95599.0,95598.0,0.00049073]
[1736532060606,0.59806808,95599.0,95530.0,0.117718]
[1736532060607,0.34870778,95577.0,95530.0,0.041918]
[1736532060810,0.09870778,95541.0,95530.0,0.041918]
[1736532061013,0.10549976,95577.0,95533.0,0.209351]
[1736532061014,0.00104587,95543.0,95533.0,0.209351]
[1736532061220,0.00104587,95551.0,95517.0,0.05]
[1736532061427,0.09870778,95578.0,95538.0,0.10429976]
[1736532061642,0.0824,95594.0,95538.0,0.10429976]
[1736532061643,0.1,95575.0,95538.0,0.10429976]
[1736532061850,0.09975365,95576.0,95538.0,0.10429976]
[1736532061851,0.00104587,95574.0,95539.0,0.00104654]
[1736532062057,0.00104587,95583.0,95544.0,0.10429976]
[1736532062268,0.1,95597.0,95544.0,0.10429976]
[1736532062269,0.00049021,95578.0,95554.0,0.10429976]
[1736532062476,0.00049021,95578.0,95555.0,0.00104619]
[1736532062685,0.00049021,95578.0,95575.0,0.209258]
[1736532062914,0.09870778,95608.0,95590.0,0.209226]
[1736532063096,0.09870778,95608.0,95559.0,0.209294]
[1736532063097,0.00104587,95612.0,95563.0,0.00129222]
[1736532063300,0.02122337,95611.0,95590.0,0.00014502]
[1736532063509,0.209218,95594.0,95590.0,0.00014502]
[1736532063720,0.00104587,95593.0,95590.0,0.00014502]
[1736532063932,0.19870778,95591.0,95590.0,0.00014502]
[1736532064139,0.38685341,95591.0,95590.0,0.00014502]
[1736532064399,0.46633678,95591.0,95590.0,0.00014502]
[1736532064804,0.5472878,95600.0,95590.0,0.00014502]
[1736532065010,0.00104587,95599.0,95590.0,0.00014502]
[1736532065218,0.00104587,95607.0,95590.0,0.00014502]
[1736532065426,0.209192,95606.0,95590.0,0.00014502]